bitfinex-derivatives/quotes_ETHF0:USTF0_20251211
["timestamp","ask_amount","ask_price","bid_price","bid_amount"]
[1765414935973,0.00457519,3275.2,3275.1,4.8087]
[1765414936371,3.52807475,3275.2,3274.8,0.15265]
[1765414936574,2.42917519,3275.2,3274.8,0.15496377]
[1765414937274,1.09890036,3275.1,3274.8,0.15496377]
[1765414937478,0.00457519,3275.2,3275.1,4.8681]
[1765414937668,0.00457519,3275.2,3275.1,5.02073]
[1765414938169,1.10339661,3275.2,3275.1,5.02073]
[1765414938673,3.43229661,3275.2,3275.1,2.55923]
[1765414938977,1.10339661,3275.2,3275.1,2.55923]
[1765414939176,1.10339661,3275.2,3275.1,5.02073]
[1765414940378,5.87249661,3275.2,3275.1,0.15263]
[1765414941185,7.46738745,3275.2,3275.1,0.15263]
[1765414941371,5.87249661,3275.2,3275.1,0.15263]
[1765414941879,4.7691,3274.9,3274.8,0.00231377]
[1765414942072,5.86792142,3274.9,3274.8,0.00231377]
[1765414942269,5.86792142,3274.9,3274.2,3.2078]
[1765414942571,2.3289,3274.1,3274.0,1.448]
[1765414942767,1.09882142,3274.1,3274.0,6.46879]
[1765414943572,1.10134426,3274.1,3274.0,8.82870667]
[1765414945371,4.426e-05,3274.1,3274.0,8.82870667]
[1765414945676,1.59036229,3274.7,3274.6,4.8681]
[1765414946580,1.59303813,3274.7,3274.6,5.02329791]
[1765414946782,0.00267584,3274.7,3274.6,8.23109791]
[1765414946980,0.00267584,3274.7,3274.6,14.23109791]
[1765414947474,2.12652113,3275.0,3274.6,14.23109791]
[1765414947475,2.12652113,3275.0,3274.9,5.02074]
[1765414947667,2.3289,3275.1,3275.0,3.8138]
[1765414948073,0.00457519,3275.2,3275.1,4.8066]
[1765414948469,0.00714527,3275.2,3275.1,4.8066]
[1765414948679,2.43914527,3275.2,3275.1,2.4668]
[1765414949474,0.00714527,3275.2,3275.1,4.8066]
[1765414949683,0.00714527,3275.2,3275.1,4.95923]
[1765414951981,4.66309399,3275.5,3275.4,4.95922]
[1765414952371,1.58944139,3275.6,3275.5,6.39892]
[1765414952575,3.2078,3275.9,3275.8,4.9592]
[1765414952780,7.9862,3276.3,3276.2,2.4668]
[1765414952974,7.98880837,3276.3,3276.2,2.4668]
[1765414953886,5.64240837,3276.3,3276.2,2.4668]
[1765414954083,4.7784,3276.2,3276.1,0.15259]
[1765414954784,6.2246,3276.0,3275.9,0.00457519]
[1765414955079,11.55192387,3276.0,3275.9,0.00457519]
[1765414955281,9.4324,3276.0,3275.9,0.00457519]
[1765414957379,16.53116105,3276.0,3275.9,0.00457519]
[1765414958277,9.08496105,3276.0,3275.9,0.00457519]
[1765414958483,6.73856105,3276.0,3275.9,4.81117519]
[1765414959280,9.08496105,3276.0,3275.9,0.00457519]
[1765414964084,9.71386105,3276.0,3275.9,0.00457519]
[1765414964488,4.7784,3275.3,3275.2,0.15263]
[1765414964690,9.08496105,3275.3,3275.2,0.15263]
[1765414964882,6.73856105,3275.3,3275.2,4.95923]
[1765414965388,3.2078,3275.3,3275.2,4.95923]
[1765414966889,5.6398,3275.3,3275.2,2.61943]
[1765414967089,7.9862,3275.3,3275.2,0.15263]
[1765414967487,5.6398,3275.3,3275.2,2.61943]
[1765414967684,5.6398,3275.3,3275.2,4.95923]
[1765414967889,7.9862,3275.3,3275.2,0.15263]
[1765414968090,5.6398,3275.3,3275.2,2.61943]
[1765414968285,3.2078,3275.7,3275.0,4.6475]
[1765414968490,3.2078,3275.7,3275.5,4.05911]
[1765414968692,3.2078,3275.7,3275.6,4.8066]
[1765414969185,5.6398,3275.7,3275.5,1.59231]
[1765414969389,2.432,3275.6,3275.5,1.59231]
[1765414969592,4.7784,3275.6,3275.5,0.15261]
[1765414969985,4.7784,3274.9,3274.8,0.15265]
[1765414970391,2.432,3274.9,3274.8,2.61945]
[1765414970588,5.6398,3275.1,3275.0,0.15264]
[1765414970792,7.9862,3275.1,3275.0,0.15264]
[1765414970987,4.7784,3274.7,3274.6,0.00253791]
[1765414971188,7.9862,3274.7,3274.6,0.00253791]
[1765414972190,4.7784,3273.6,3273.0,4.6475]
[1765414972389,4.7784,3273.5,3273.4,0.15271]
[1765414973089,4.7784,3273.5,3273.4,0.15624722]
[1765414973288,4.78115352,3273.5,3273.4,0.15624722]
[1765414973889,4.78115352,3273.5,3273.4,0.00353722]
[1765414978093,2.43475352,3273.5,3273.4,2.20533722]
[1765414978395,0.00275352,3273.5,3273.4,4.38653722]
[1765414978993,2.10295352,3273.5,3273.4,2.20533722]
[1765414979401,4.35635352,3273.5,3273.4,0.00353722]
[1765414979900,2.10295352,3273.5,3273.4,2.20533722]
[1765414980405,4.35635352,3273.5,3273.4,0.00353722]
[1765414980896,2.10295352,3273.5,3273.4,4.38653722]
[1765414981100,0.00275352,3273.5,3273.4,4.38653722]
[1765414981289,0.00275352,3273.5,3273.4,4.53924722]
[1765414981494,0.00275352,3273.5,3273.4,2.35804722]
[1765414981701,0.00275352,3273.5,3273.4,4.53924722]
[1765414983801,2.10295352,3273.5,3273.4,4.53924722]
[1765414984098,0.00275352,3273.5,3273.4,4.53924722]
[1765414984903,4.35635352,3273.5,3273.4,2.35804722]
[1765414985094,4.35635352,3273.5,3273.4,0.15624722]
[1765414985896,0.00275352,3273.5,3273.4,4.53924722]
[1765414986197,0.00458252,3273.6,3273.5,5.83421]
[1765414986398,3.2078,3274.4,3274.3,4.383]
[1765414986600,0.80422,3275.5,3274.3,4.383]
[1765414986601,3.2078,3274.8,3274.3,4.383]
[1765414986997,3.2078,3274.8,3274.7,4.383]
[1765414987297,3.21079163,3274.8,3274.7,4.53565]
[1765414987808,0.00299163,3274.8,3274.7,10.53565]
[1765414988099,0.00299163,3274.8,3274.7,13.74345]
[1765414988800,0.00299163,3274.8,3274.7,7.74345]
[1765414989106,0.00299163,3274.8,3274.7,4.53565]
[1765414989700,2.10319163,3274.8,3274.7,0.15265]
[1765414989897,4.35659163,3274.8,3274.7,0.15265]
[1765414990303,4.35659163,3274.8,3274.3,3.2078]
[1765414990304,4.3536,3274.4,3274.3,3.2078]
[1765414990810,2.1002,3274.0,3273.9,0.15269]
[1765414991103,2.1002,3274.0,3273.9,2.35449]
[1765414991296,7.5614,3274.0,3273.9,0.15269]
[1765414993101,3.2078,3274.0,3273.9,4.53569]
[1765414993497,7.5614,3274.0,3273.9,0.15269]
[1765414993711,4.3536,3273.5,3273.1,0.15731252]
[1765414995305,2.1002,3271.3,3270.6,1.2985]
[1765414995505,2.1002,3270.7,3270.3,3.2078]
[1765414995703,2.1002,3270.7,3270.1,0.15286]
[1765414996096,0.3034,3271.2,3270.1,0.15286]
[1765414996298,3.2078,3270.2,3270.1,4.26342067]
[1765414996500,7.2674,3270.2,3270.1,0.15522067]
[1765414996703,5.304,3270.2,3270.1,0.15522067]
[1765414997902,7.2674,3270.2,3270.1,0.00236067]
[1765414999904,8.33432984,3270.2,3270.1,0.00236067]
[1765415002111,4.0596,3269.7,3268.8,1.2793]
[1765415002306,3.2078,3269.2,3268.7,0.15293]
[1765415002507,3.2078,3268.8,3268.7,4.26113]
[1765415002715,7.2674,3268.8,3268.0,3.2078]
[1765415002901,3.2078,3268.4,3268.3,4.1082]
[1765415004317,7.27015289,3268.8,3268.3,0.15295]
[1765415004510,3.2078,3268.4,3268.3,0.15295]
[1765415004710,7.2674,3268.4,3268.3,0.15295]
[1765415005105,4.0596,3268.1,3268.0,0.00233607]
[1765415006716,2.11952387,3270.8,3269.2,4.1082]
[1765415006912,6.93858252,3269.3,3268.8,1.2793]
[1765415007107,4.1418,3268.9,3268.8,1.2793]
[1765415007417,10.1418,3268.9,3268.8,1.2793]
[1765415007817,10.14574088,3268.9,3268.8,1.2793]
[1765415008415,12.10914088,3268.9,3268.8,1.2793]
[1765415009015,11.17514088,3268.9,3268.2,1.2793]
[1765415009315,5.4051,3267.8,3267.7,0.15298]
[1765415009619,8.6129,3267.8,3267.7,0.15298]
[1765415009817,13.33126393,3267.8,3267.7,0.15298]
[1765415010216,13.33126393,3267.8,3267.7,0.15661377]
[1765415010415,7.92616393,3267.8,3267.7,5.62311377]
[1765415010613,3.2078,3267.8,3267.7,5.62311377]
[1765415010814,13.33126393,3267.8,3267.7,0.15661377]
[1765415011112,3.2078,3267.8,3267.0,0.15301]
[1765415011313,3.2078,3267.2,3266.0,0.24422518]
[1765415011519,3.2078,3266.7,3266.0,0.24422518]
[1765415011719,3.2078,3266.7,3265.8,3.2078]
[1765415011914,3.2078,3266.3,3266.2,0.15305]
[1765415012220,3.21009738,3266.3,3266.2,0.15694376]
[1765415012519,0.00229738,3266.3,3266.2,1.70424376]
[1765415012713,7.77545131,3266.3,3266.2,0.15694376]
[1765415012914,7.77545131,3266.3,3266.2,1.70424376]
[1765415012915,3.21009738,3266.3,3266.2,1.70424376]
[1765415013319,7.77545131,3266.3,3266.2,0.15694376]
[1765415013720,13.18055131,3266.3,3266.2,0.15694376]
[1765415013932,13.18055131,3266.3,3265.4,0.15309]
[1765415013933,2.6578,3265.5,3265.4,0.15309]
[1765415014115,8.6129,3265.5,3265.4,0.15309]
[1765415014316,3.2078,3265.9,3265.4,0.15309]
[1765415014526,6.22585393,3265.9,3265.5,1.70038]
[1765415014821,3.2078,3265.9,3265.8,5.4665]
[1765415015016,6.22585393,3265.9,3265.8,5.4665]
[1765415015228,11.63095393,3265.9,3265.0,0.15311]
[1765415015524,3.2078,3265.1,3265.0,0.15311]
[1765415015723,8.6129,3265.1,3265.0,0.15311]
[1765415016026,11.63095393,3265.1,3264.2,3.36094]
[1765415016320,3.2078,3264.5,3264.2,0.15314]
[1765415016715,6.22585393,3264.5,3264.2,0.15314]
[1765415018419,6.22585393,3264.5,3263.4,1.5473]
[1765415018633,3.2078,3264.0,3263.3,0.15318]
[1765415018818,3.2105497,3264.0,3263.3,0.15318]
[1765415019018,3.2078,3263.6,3263.3,0.15318]
[1765415019214,2.6578,3263.4,3263.3,0.15318]
[1765415019518,8.42315393,3263.4,3262.6,3.2078]
[1765415019717,0.00459693,3263.3,3262.7,0.002541]
[1765415019920,0.00459693,3263.3,3263.2,5.61969]
[1765415020115,0.00459693,3263.3,3263.2,8.82749]
[1765415020320,3.2105497,3264.0,3263.9,0.15316]
[1765415020625,3.2105497,3264.0,3263.9,5.61966]
[1765415021027,3.2105497,3264.0,3263.9,2.91286]
[1765415021515,8.88640363,3264.0,3263.9,0.15316]
[1765415021715,11.63370363,3264.0,3263.9,0.15316]
[1765415022321,8.88640363,3264.0,3263.9,0.15316]
[1765415022522,6.22860363,3264.0,3263.9,0.15316]
[1765415022721,3.2105497,3264.0,3263.9,2.91286]
[1765415022921,3.2105497,3264.0,3263.9,5.61966]
[1765415023520,0.0027497,3264.0,3263.9,5.61966]
[1765415023924,3.2078,3264.8,3264.7,5.61962]
[1765415024116,5.8656,3265.4,3265.3,0.15309]
[1765415024326,3.2078,3265.4,3265.3,2.91279]
[1765415024526,11.63095393,3265.4,3265.3,0.15309]
[1765415024922,11.63361817,3265.4,3265.3,0.15557886]
[1765415025422,11.63361817,3265.4,3265.3,0.00248886]
[1765415026029,8.88631817,3265.4,3265.3,0.00248886]
[1765415026327,11.63361817,3265.4,3265.3,0.00248886]
[1765415026732,1.5562,3264.8,3263.4,1.70048]
[1765415027020,3.2078,3264.0,3263.5,0.15318]
[1765415027521,3.2078,3263.6,3262.7,1.70051]
[1765415027724,3.2078,3263.2,3262.8,0.00459693]
[1765415028621,6.22585393,3263.2,3262.8,0.00459693]
[1765415029630,6.22585393,3263.2,3263.1,0.1532]
[1765415032624,0.00459693,3263.5,3263.2,0.15319]
[1765415032824,3.02265086,3263.5,3263.2,0.15319]
[1765415033426,0.00459693,3263.5,3263.4,1.70048]
[1765415034025,0.00459693,3263.5,3263.4,7.16698]
[1765415034228,0.00459693,3263.5,3263.4,4.46018]
[1765415034428,8.42775086,3263.5,3262.8,0.00459693]
[1765415034628,2.6578,3262.9,3262.8,0.00459693]
[1765415034934,5.40748077,3262.9,3262.8,0.00459693]
[1765415035133,8.4255347,3262.9,3262.8,0.00459693]
[1765415035830,3.0204347,3262.9,3262.8,2.91750693]
[1765415036035,0.00238077,3262.9,3262.8,2.91750693]
[1765415036230,5.6782347,3262.9,3262.8,0.15780693]
[1765415036732,8.4255347,3262.9,3262.8,0.15780693]
[1765415036929,5.4051,3262.8,3262.7,0.00262878]
[1765415037130,5.4051,3262.8,3261.7,3.2078]
[1765415037131,2.6578,3262.3,3261.7,3.2078]
[1765415037337,3.2078,3262.2,3261.8,0.15326]
[1765415037529,3.2078,3262.2,3262.0,0.15325]
[1765415037530,1.31751393,3262.1,3262.0,0.15325]
[1765415037734,3.2078,3262.2,3262.1,5.4665]
[1765415037928,3.2078,3262.2,3262.1,5.61974]
[1765415038333,3.21018077,3262.9,3262.4,0.15323]
[1765415038535,1.31751393,3262.8,3262.7,2.6027]
[1765415039432,1.31751393,3262.8,3262.7,2.75591]
[1765415040432,1.31751393,3262.8,3262.7,5.25391]
[1765415040638,1.31751393,3262.8,3262.7,6.93551]
[1765415041032,0.00238077,3262.9,3262.8,5.25391]
[1765415041233,3.2078,3263.4,3263.3,5.1007]
[1765415041435,0.00459693,3263.5,3263.4,0.15318]
[1765415041641,0.00459693,3263.5,3263.4,6.93548]
[1765415042440,3.2078,3263.8,3263.7,5.25387]
[1765415043035,3.2078,3264.2,3264.1,2.6027]
[1765415043230,4.03506065,3264.2,3264.1,5.25385]
[1765415043431,3.2107795,3264.2,3264.1,6.93545]
[1765415043632,0.0029795,3264.2,3264.1,6.93545]
[1765415043837,3.2078,3264.6,3264.5,5.25383]
[1765415044142,4.03284965,3264.6,3264.5,0.15313]
[1765415044337,4.03284965,3264.6,3264.5,5.25383]
[1765415044537,4.03109906,3264.6,3264.5,5.25383]
[1765415044738,8.05879357,3264.6,3264.5,0.15313]
[1765415045845,4.03437964,3264.6,3264.5,5.25383]
[1765415046442,10.77789357,3264.6,3264.5,0.15313]
[1765415046742,8.05879357,3264.6,3264.5,0.15313]
[1765415047042,9.46037964,3264.6,3263.8,0.00459693]
[1765415047343,5.426,3263.9,3263.8,0.00459693]
[1765415047649,6.24678174,3263.9,3263.8,0.00459693]
[1765415048850,3.52768174,3263.9,3263.8,0.00459693]
[1765415049048,0.82078174,3263.9,3263.8,0.00459693]
[1765415049345,6.24678174,3263.9,3263.8,0.00459693]
[1765415049942,5.426,3263.5,3263.4,0.00255384]
[1765415050145,9.45458174,3263.5,3263.4,0.00255384]
[1765415050638,2.7069,3263.0,3262.9,0.1532]
[1765415050841,9.45458174,3263.0,3262.9,0.1532]
[1765415051456,4.02858174,3263.0,3262.9,5.2539]
[1765415051645,4.02858174,3263.0,3262.9,5.25673142]
[1765415052651,3.2078,3263.0,3262.9,13.56356206]
[1765415053045,4.77025327,3264.1,3263.5,0.15317]
[1765415053246,4.77025327,3264.1,3262.1,12.077]
[1765415053247,1.5825,3261.3,3260.9,3.2078]
[1765415053440,1.6867,3260.6,3259.3,0.15337]
[1765415053751,0.81182796,3260.5,3259.3,0.15337]
[1765415054046,0.81182796,3260.4,3258.6,0.15341]
[1765415054247,0.81182796,3260.4,3258.6,0.15592857]
[1765415054248,0.00459693,3259.8,3258.6,0.15592857]
[1765415054440,0.81182796,3259.7,3258.6,0.15592857]
[1765415054642,0.00459693,3259.8,3258.9,0.15339]
[1765415054847,0.00459693,3259.8,3258.6,0.00251857]
[1765415055151,0.00459693,3259.8,3259.1,0.15338]
[1765415055342,0.00459693,3259.8,3258.6,0.00251857]
[1765415056852,3.2078,3258.7,3258.6,0.00251857]
[1765415059555,3.2078,3258.7,3258.1,0.21306004]
[1765415059556,1.8143,3258.5,3258.1,0.21306004]
[1765415059747,3.2078,3258.2,3258.1,0.21306004]
[1765415060142,3.2078,3258.2,3258.1,0.27598854]
[1765415060348,3.2078,3258.2,3258.1,0.21306004]
[1765415060945,3.2078,3258.2,3258.1,0.27598854]
[1765415061455,3.2078,3258.2,3258.1,0.21306004]
[1765415062256,3.2078,3258.2,3257.3,0.15347]
[1765415062452,3.2078,3257.4,3257.3,0.15596059]
[1765415062650,3.21082024,3257.4,3257.3,0.15596059]
[1765415062848,3.21082024,3257.4,3257.3,0.44502823]
[1765415063250,3.216e-05,3257.4,3257.3,6.44502823]
[1765415063647,3.216e-05,3257.4,3257.3,0.44502823]
[1765415064547,3.216e-05,3257.4,3257.3,6.44502823]
[1765415065762,3.216e-05,3257.4,3257.3,18.84702823]
[1765415066459,3.216e-05,3257.4,3257.3,22.25032516]
[1765415067462,3.216e-05,3257.4,3257.3,18.84402823]
[1765415067661,3.2078,3258.6,3258.5,0.15341]
[1765415068663,3.21081197,3258.6,3258.5,0.15341]
[1765415069266,3.2078,3259.1,3258.5,1.9774]
[1765415069565,3.2078,3259.1,3259.0,0.15339]
[1765415069763,3.2078,3259.5,3259.3,0.15337]
[1765415070361,3.21079039,3259.5,3259.3,0.15337]
[1765415070864,3.21079039,3259.5,3259.4,0.15337]
[1765415071067,0.00299039,3259.5,3259.4,0.15337]
[1765415071763,3.21079039,3259.5,3259.4,0.15337]
[1765415073372,0.00299039,3259.5,3259.4,0.15337]
[1765415073564,0.0046044,3259.7,3259.6,0.15336]
[1765415073863,0.0046044,3259.7,3259.6,3.36116]
[1765415074063,0.0046044,3259.7,3259.6,9.36116]
[1765415074461,0.0046044,3259.7,3259.6,12.071396]
[1765415074656,0.0078586,3259.7,3259.6,11.35061343]
[1765415074856,0.0078586,3259.7,3259.6,23.28161343]
[1765415075266,0.0078586,3259.7,3259.6,23.75461343]
[1765415076061,3.2078,3260.3,3260.2,0.15333]
[1765415076267,3.2078,3260.3,3260.2,2.13937076]
[1765415076464,1.8143,3261.3,3260.2,11.55444076]
[1765415076668,3.2078,3261.5,3261.2,3.2685]
[1765415076965,3.2078,3261.9,3261.2,3.2078]
[1765415077161,3.21600884,3261.9,3261.4,0.15327]
[1765415077368,0.00820884,3261.9,3261.8,1.98604076]
[1765415077560,3.2078,3263.2,3262.5,0.15322]
[1765415077761,3.2078,3263.2,3262.7,1.98604076]
[1765415078361,1.9745,3263.4,3262.7,1.98604076]
[1765415078362,1.9745,3263.4,3262.9,3.2078]
[1765415078561,0.00225654,3263.4,3262.9,3.21100513]
[1765415078763,1.97675654,3263.4,3262.9,0.00320513]
[1765415079156,1.97675654,3263.4,3262.9,3.21100513]
[1765415079769,1.97675654,3263.4,3263.0,0.1532]
[1765415079962,0.00225654,3263.4,3263.1,1.98604076]
[1765415080269,0.00225654,3263.4,3263.2,0.15319]
[1765415080666,0.00225654,3263.4,3263.3,0.15319]
[1765415080867,3.2078,3264.0,3263.8,0.15316]
[1765415081068,1.9745,3264.8,3263.8,0.15316]
[1765415081069,3.2078,3264.4,3263.8,0.15316]
[1765415081373,5.1823,3264.8,3264.2,0.15314]
[1765415081569,5.1823,3264.8,3264.3,0.15314]
[1765415081766,5.1823,3264.8,3263.9,1.98604076]
[1765415081767,5.18506747,3264.8,3264.4,3.36093]
[1765415082062,3.21056747,3264.8,3264.7,0.15312]
[1765415082268,3.2078,3265.9,3265.1,0.1531]
[1765415082473,3.2078,3265.9,3265.5,3.2078]
[1765415082667,1.9745,3266.4,3265.7,0.15307]
[1765415083067,1.9745,3266.4,3266.0,3.2078]
[1765415083365,1.97731725,3266.4,3266.0,3.21104542]
[1765415083566,1.97731725,3266.4,3266.0,0.00324542]
[1765415083768,1.97731725,3266.4,3266.0,3.21104542]
[1765415084069,1.97731725,3266.4,3266.0,0.00324542]
[1765415085460,3.2078,3266.2,3266.0,0.00324542]
[1765415086071,1.97731725,3266.4,3266.0,0.00324542]
[1765415086266,1.97731725,3266.4,3266.3,3.2078]
[1765415086571,1.97731725,3266.4,3266.0,0.00324542]
[1765415087163,0.00281725,3266.4,3266.3,3.36085]
[1765415087866,1.9745,3266.2,3266.0,0.00324542]
[1765415088073,1.9745,3266.2,3266.1,3.2078]
[1765415088268,1.9745,3266.2,3266.0,0.00324542]
[1765415088872,0.00281725,3266.4,3266.1,3.2078]
[1765415089071,1.9745,3266.2,3266.0,0.15630542]
[1765415090674,1.9745,3266.2,3266.0,0.00324542]
[1765415091274,0.00281725,3266.4,3266.1,0.15306]
[1765415091676,0.00281725,3266.4,3266.2,3.2078]
[1765415092277,0.00281725,3266.4,3266.3,6.3606]
[1765415092672,0.00281725,3266.4,3266.3,6.51365]
[1765415092875,0.00294149,3266.5,3266.4,6.51364]
[1765415093074,3.2078,3267.8,3266.4,2.69818579]
[1765415093281,5.1823,3268.3,3267.6,3.36078]
[1765415093781,5.1823,3268.3,3267.6,3.2078]
[1765415093976,5.18473633,3268.3,3267.6,3.2078]
[1765415094173,5.18473633,3268.3,3267.8,0.15297]
[1765415094578,1.9745,3269.7,3269.0,0.15292]
[1765415094777,1.9745,3269.7,3267.9,9.98419759]
[1765415094778,1.9745,3269.7,3269.2,3.2078]
[1765415095082,3.2078,3270.2,3270.0,0.15287]
[1765415095281,1.9745,3270.4,3270.0,3.2078]
[1765415095476,1.9745,3271.1,3270.3,0.15286]
[1765415095683,1.97786294,3271.1,3271.0,3.2078]
[1765415096176,5.18566294,3271.1,3270.5,0.15285]
[1765415096492,1.97786294,3271.1,3270.8,3.2078]
[1765415097273,0.00336294,3271.1,3271.0,0.15283]
[1765415097673,1.9745,3271.2,3271.0,3.50525915]
[1765415097875,1.9745,3271.2,3270.8,3.2078]
[1765415098673,1.97759416,3271.2,3270.8,3.2078]
[1765415099280,2.1573,3270.4,3270.3,0.00386288]
[1765415099783,5.3651,3270.4,3270.3,0.00386288]
[1765415100281,3.2078,3270.8,3270.3,0.00386288]
[1765415100481,2.1573,3270.4,3270.3,0.00386288]
[1765415100684,2.1573,3270.4,3269.8,0.00458989]
[1765415100685,5.3651,3270.4,3269.8,0.00458989]
[1765415101074,5.3651,3270.4,3269.6,3.2078]
[1765415101075,5.3651,3270.4,3269.6,3.10076667]
[1765415101380,3.2078,3269.9,3269.3,3.3607]
[1765415101583,3.2078,3269.9,3269.3,0.1529]
[1765415101777,3.2078,3269.9,3269.3,12.55379216]
[1765415102278,3.21236597,3269.9,3269.3,12.55838205]
[1765415102485,3.21236597,3269.9,3269.3,0.00848205]
[1765415102688,2.1573,3269.6,3269.3,0.00848205]
[1765415102880,3.2078,3269.4,3268.6,3.36074]
[1765415103384,3.2078,3269.0,3268.6,0.15294]
[1765415103776,3.2078,3269.0,3268.6,0.00320706]
[1765415105078,2.1573,3268.8,3268.6,0.00320706]
[1765415105384,2.1573,3268.8,3267.5,2.756]
[1765415105581,3.2078,3267.6,3266.4,3.2078]
[1765415105779,3.2078,3267.0,3266.4,3.2078]
[1765415105980,3.2078,3267.0,3266.4,3.36084]
[1765415106181,3.21070444,3267.0,3266.4,3.36449217]
[1765415106375,0.00749433,3267.0,3266.4,3.21604206]
[1765415106576,0.00749433,3267.0,3266.4,0.00824206]
[1765415106780,0.00749433,3267.0,3266.7,0.15303]
[1765415106979,0.00749433,3267.0,3266.4,2.19614206]
[1765415107184,0.00749433,3267.0,3266.9,0.15302]
[1765415107987,3.21529433,3267.0,3266.9,0.15302]
[1765415108589,0.00749433,3267.0,3266.8,3.2078]
[1765415108992,0.00749433,3267.0,3266.8,3.36082]
[1765415109495,0.00749433,3267.0,3266.9,0.15302]
[1765415112694,0.00749433,3267.0,3266.9,12.54702]
[1765415113190,0.00749433,3267.0,3266.8,3.2078]
[1765415114992,0.00749433,3267.0,3266.8,3.36082]
[1765415115394,0.00749433,3267.0,3266.9,0.15302]
[1765415116698,0.00749433,3267.0,3266.9,12.54402]
[1765415117293,0.00749433,3267.0,3266.9,14.78092]
[1765415121390,0.00749433,3267.0,3266.9,22.27942]
[1765415121590,3.2078,3267.7,3267.6,0.15298]
[1765415121900,2.1573,3268.0,3267.6,0.15298]
[1765415122094,2.1573,3268.0,3267.7,0.15298]
[1765415122294,3.7345,3267.8,3267.7,0.15298]
[1765415122601,0.0033151,3267.8,3267.7,0.15298]
[1765415123300,0.0033151,3267.8,3267.7,7.66148]
[1765415124997,8.42506434,3267.8,3267.7,0.15298]
[1765415125204,7.5654,3267.7,3267.0,3.2078]
[1765415125394,3.01554924,3267.6,3267.0,15.72981]
[1765415125600,0.85634924,3267.5,3267.0,15.72981]
[1765415125796,0.85634924,3267.4,3267.0,15.5768]
[1765415125996,0.0033151,3267.8,3267.3,0.153]
[1765415126202,3.7345,3267.4,3267.3,0.153]
[1765415126402,0.85750919,3267.4,3267.3,3.9234]
[1765415126992,4.59200919,3267.4,3267.3,0.153]
[1765415127192,8.42290919,3267.4,3267.3,0.153]
[1765415127401,8.42290919,3267.4,3267.0,3.2078]
[1765415127402,3.7345,3267.1,3267.0,3.2078]
[1765415127596,8.42290919,3267.1,3267.0,3.2078]
[1765415128198,0.85750919,3267.1,3267.0,6.7132]
[1765415128397,7.2486,3266.7,3266.6,3.2078]
[1765415128602,7.2486,3266.5,3266.3,0.15304]
[1765415128897,8.10610919,3266.5,3266.3,0.15304]
[1765415131505,9.69736253,3266.5,3266.3,0.15304]
[1765415132208,8.10610919,3266.5,3266.3,0.15304]
[1765415132602,0.85750919,3266.5,3266.4,7.14054206]
[1765415132809,8.10610919,3266.5,3266.4,0.00824206]
[1765415136407,7.2486,3266.5,3266.4,0.00824206]
[1765415139408,3.2078,3266.7,3266.4,3.51364206]
[1765415139613,3.2078,3266.7,3266.6,7.1323]
[1765415139810,6.8555,3266.7,3266.5,0.15303]
[1765415140011,3.6477,3266.6,3266.5,0.15303]
[1765415140306,7.2486,3266.6,3266.5,0.15303]
[1765415143421,3.6477,3266.5,3266.4,0.00824206]
[1765415143614,3.2078,3266.7,3266.4,3.51364206]
[1765415143810,7.2486,3266.5,3266.4,0.00824206]
[1765415145212,7.2486,3266.6,3266.5,0.15303]
[1765415145420,6.8555,3266.7,3266.6,0.15303]
[1765415145614,3.2078,3266.7,3266.6,7.28533]
[1765415145918,10.4564,3266.7,3266.6,0.15303]
[1765415147715,3.2078,3266.7,3266.6,7.28533]
[1765415148309,3.2078,3267.2,3266.8,0.15302]
[1765415148609,2.0852,3267.6,3267.1,7.28531]
[1765415148816,3.2111151,3267.8,3267.5,3.5054]
[1765415149211,7.2486,3267.6,3267.3,0.153]
[1765415150116,7.2486,3267.4,3267.3,0.153]
[1765415150816,3.2111151,3267.8,3267.3,3.6584]
[1765415151212,3.2111151,3267.8,3267.0,5.3421]
[1765415151213,3.2111151,3267.8,3267.7,3.65838]
[1765415151414,10.4597151,3267.8,3267.7,0.15298]
[1765415151817,3.6510151,3267.8,3267.7,0.15298]
[1765415152017,7.2519151,3267.8,3267.7,0.15298]
[1765415153618,3.6510151,3267.8,3267.7,3.65838]
[1765415154416,7.2519151,3267.8,3267.7,0.15298]
[1765415156117,10.4597151,3267.8,3267.7,0.15298]
[1765415156317,0.0033151,3267.8,3267.7,3.65838]
[1765415156824,0.0033151,3267.8,3267.7,7.28528]
[1765415157023,7.2519151,3267.8,3267.7,0.15298]
[1765415157725,10.4597151,3267.8,3267.7,0.15298]
[1765415161223,0.0033151,3267.8,3267.7,6.73178]
[1765415161621,6.3873,3268.7,3268.6,0.15294]
[1765415161827,3.2078,3268.7,3268.6,6.73174]
[1765415162224,3.2078,3269.1,3269.0,3.43062]
[1765415162628,0.00377444,3269.1,3269.0,9.94286798]
[1765415163626,0.00377444,3269.1,3269.0,6.73506798]
[1765415164023,3.2078,3269.5,3269.0,0.00334798]
[1765415164225,3.2078,3269.9,3269.8,6.73168]
[1765415164526,3.2078,3269.9,3269.8,19.06268]
[1765415164723,3.2078,3270.3,3270.2,3.2777]
[1765415165123,3.21093948,3270.3,3270.2,6.5788]
[1765415165524,3.2607,3270.1,3270.0,0.15287]
[1765415165728,6.3873,3270.1,3269.3,3.2078]
[1765415165930,6.3873,3269.3,3269.2,0.15291]
[1765415166130,6.3873,3269.3,3269.2,8.83391]
[1765415166522,5.0594,3270.0,3269.2,15.41271]
[1765415166827,3.2078,3270.0,3269.9,3.2777]
[1765415167035,0.00313948,3270.3,3270.2,3.2777]
[1765415167328,0.00313948,3270.3,3270.2,6.5788]
[1765415168134,0.00313948,3270.3,3270.2,9.7866]
[1765415168627,3.2078,3271.1,3270.6,2.00174]
[1765415168831,3.2078,3271.1,3270.6,12.48184]
[1765415169034,3.2078,3271.1,3271.0,3.2777]
[1765415169422,3.21001395,3271.1,3271.0,3.2777]
[1765415169624,3.21001395,3271.1,3271.0,6.5788]
[1765415170231,6.3873,3271.0,3270.9,0.15283]
[1765415170428,3.2607,3271.0,3270.9,0.15283]
[1765415170828,3.21001395,3271.1,3271.0,3.2777]
[1765415171025,3.21001395,3271.1,3271.0,6.5788]
[1765415171230,0.00221395,3271.1,3271.0,6.73163]